[Event "Titled Tuesday Blitz July 18 Late 2023"]
[White "Gadimbayli, Abdulla"]
[Black "Gascon Del Nogal, Jose Rafael"]
[WhiteFideId "13404938"]
[BlackFideId "3902463"]
[WhiteElo "2846"]
[BlackElo "2585"]
[Result "1-0"]
[Round "10"]
[TimeControl "180+2"]
[Date "2023.07.18"]
[WhiteClock "0:01:39"]
[BlackClock "0:00:03"]
[Board "21"]

1. Nf3 {[%clk 0:02:59]}  c5 {[%clk 0:02:59]} 2. e4 {[%clk 0:02:57]}  d6 {[%clk 0:02:59]} 3. d4 {[%clk 0:02:58]}  cxd4 {[%clk 0:03:00]} 4. Nxd4 {[%clk 0:02:58]}  Nf6 {[%clk 0:03:00]} 5. Nc3 {[%clk 0:02:59]}  Nc6 {[%clk 0:03:01]} 6. Bb5 {[%clk 0:02:58]}  Bd7 {[%clk 0:03:01]} 7. Bg5 {[%clk 0:02:58]}  Nxd4 {[%clk 0:02:46]} 8. Bxd7+ {[%clk 0:02:55]}  Qxd7 {[%clk 0:02:46]} 9. Qxd4 {[%clk 0:02:56]}  e6 {[%clk 0:02:41]} 10. Bxf6 {[%clk 0:02:50]}  gxf6 {[%clk 0:02:41]} 11. Qxf6 {[%clk 0:02:50]}  Rg8 {[%clk 0:02:41]} 12. O-O {[%clk 0:02:48]}  Rc8 {[%clk 0:02:40]} 13. Rad1 {[%clk 0:02:44]}  Bg7 {[%clk 0:02:34]} 14. Qh4 {[%clk 0:02:44]}  Be5 {[%clk 0:01:53]} 15. Rd3 {[%clk 0:02:40]}  Qe7 {[%clk 0:01:48]} 16. Qh3 {[%clk 0:02:19]}  Qg5 {[%clk 0:01:42]} 17. f4 {[%clk 0:02:16]}  Bxf4 {[%clk 0:01:34]} 18. Rdf3 {[%clk 0:02:16]}  Be5 {[%clk 0:00:48]} 19. Rxf7 {[%clk 0:02:14]}  Qg6 {[%clk 0:00:45]} 20. R7f6 {[%clk 0:01:40]}  Bxf6 {[%clk 0:00:17]} 21. Qxe6+ {[%clk 0:01:40]}  Kd8 {[%clk 0:00:09]} 22. Qxd6+ {[%clk 0:01:40]}  Ke8 {[%clk 0:00:08]} 23. Qe6+ {[%clk 0:01:41]}  Kd8 {[%clk 0:00:07]} 24. Rd1+ {[%clk 0:01:41]}  Bd4+ {[%clk 0:00:07]} 25. Rxd4+ {[%clk 0:01:41]}  Kc7 {[%clk 0:00:08]} 26. Qe5+ {[%clk 0:01:39]}  Kc6 {[%clk 0:00:05]} 27. Qb5+ {[%clk 0:01:38]}  Kc7 {[%clk 0:00:03]} 28. Rd7+ {[%clk 0:01:39]} 1-0


[Site "https://www.chess.com"]

[Event "Titled Tuesday Blitz July 18 Late 2023"]
[White "Wieczorek, Oskar"]
[Black "Altman, Joshua"]
[WhiteFideId "1133950"]
[BlackFideId "426210"]
[WhiteElo "2719"]
[BlackElo "2566"]
[Result "0-1"]
[Round "10"]
[TimeControl "180+2"]
[Date "2023.07.18"]
[WhiteClock "0:00:00"]
[BlackClock "0:00:11"]
[Board "25"]

1. e4 {[%clk 0:02:57]}  e6 {[%clk 0:03:00]} 2. d4 {[%clk 0:02:57]}  d5 {[%clk 0:03:00]} 3. Nd2 {[%clk 0:02:58]}  Nf6 {[%clk 0:02:58]} 4. e5 {[%clk 0:02:58]}  Nfd7 {[%clk 0:02:59]} 5. c3 {[%clk 0:02:59]}  c5 {[%clk 0:02:59]} 6. f4 {[%clk 0:03:00]}  Nc6 {[%clk 0:02:59]} 7. Ndf3 {[%clk 0:03:00]}  Qb6 {[%clk 0:02:57]} 8. a3 {[%clk 0:02:59]}  Be7 {[%clk 0:02:28]} 9. b4 {[%clk 0:02:56]}  cxd4 {[%clk 0:02:28]} 10. cxd4 {[%clk 0:02:55]}  a6 {[%clk 0:02:29]} 11. Nh3 {[%clk 0:02:50]}  Qc7 {[%clk 0:02:25]} 12. Be2 {[%clk 0:02:50]}  b5 {[%clk 0:02:25]} 13. O-O {[%clk 0:02:50]}  Nb6 {[%clk 0:02:25]} 14. Qe1 {[%clk 0:02:50]}  Nc4 {[%clk 0:02:23]} 15. Qg3 {[%clk 0:02:51]}  g6 {[%clk 0:02:21]} 16. f5 {[%clk 0:02:51]}  exf5 {[%clk 0:02:19]} 17. Bh6 {[%clk 0:02:51]}  Be6 {[%clk 0:02:14]} 18. Nf4 {[%clk 0:02:45]}  Qd7 {[%clk 0:02:10]} 19. Nd3 {[%clk 0:02:32]}  a5 {[%clk 0:01:48]} 20. Bg7 {[%clk 0:02:26]}  Rg8 {[%clk 0:01:46]} 21. Bf6 {[%clk 0:02:26]}  g5 {[%clk 0:01:16]} 22. Qh3 {[%clk 0:02:08]}  g4 {[%clk 0:01:12]} 23. Qxh7 {[%clk 0:02:08]}  O-O-O {[%clk 0:01:12]} 24. Nfe1 {[%clk 0:01:10]}  Bxf6 {[%clk 0:01:10]} 25. Nc5 {[%clk 0:01:07]}  Qe7 {[%clk 0:00:51]} 26. Rxf5 {[%clk 0:01:07]}  Nxd4 {[%clk 0:00:33]} 27. Rxf6 {[%clk 0:00:52]}  Nxe2+ {[%clk 0:00:34]} 28. Kf2 {[%clk 0:00:53]}  Nd4 {[%clk 0:00:28]} 29. Nc2 {[%clk 0:00:47]}  Rh8 {[%clk 0:00:18]} 30. Qd3 {[%clk 0:00:18]}  Nxc2 {[%clk 0:00:18]} 31. Qxc2 {[%clk 0:00:19]}  Rxh2 {[%clk 0:00:18]} 32. Kg3 {[%clk 0:00:15]}  Rdh8 {[%clk 0:00:16]} 33. Raf1 {[%clk 0:00:14]}  Ne3 {[%clk 0:00:13]} 34. Qc3 {[%clk 0:00:03]}  Rxg2+ {[%clk 0:00:13]} 35. Kf4 {[%clk 0:00:03]}  d4 {[%clk 0:00:11]} 36. Qxd4 {[%clk 0:00:00]}  Nd5+ {[%clk 0:00:11]} 0-1


[Site "https://www.chess.com"]

[Event "Titled Tuesday Blitz July 18 Late 2023"]
[White "Velikanov, Alexander"]
[Black "Marosi, Levente"]
[WhiteFideId "2039290"]
[BlackFideId "747181"]
[WhiteElo "2707"]
[BlackElo "2563"]
[Result "0-1"]
[Round "10"]
[TimeControl "180+2"]
[Date "2023.07.18"]
[WhiteClock "0:01:35"]
[BlackClock "0:01:24"]
[Board "26"]

1. d4 {[%clk 0:03:00]}  Nf6 {[%clk 0:02:59]} 2. Nf3 {[%clk 0:03:00]}  g6 {[%clk 0:02:58]} 3. Bg5 {[%clk 0:03:00]}  Bg7 {[%clk 0:02:58]} 4. Nbd2 {[%clk 0:03:00]}  d5 {[%clk 0:02:57]} 5. Bxf6 {[%clk 0:02:57]}  exf6 {[%clk 0:02:56]} 6. e4 {[%clk 0:02:58]}  dxe4 {[%clk 0:02:56]} 7. Nxe4 {[%clk 0:02:59]}  O-O {[%clk 0:02:56]} 8. Be2 {[%clk 0:02:57]}  Re8 {[%clk 0:02:56]} 9. Ng3 {[%clk 0:02:57]}  f5 {[%clk 0:02:55]} 10. Qd2 {[%clk 0:02:37]}  Qd6 {[%clk 0:02:34]} 11. O-O-O {[%clk 0:02:04]}  f4 {[%clk 0:02:09]} 12. Nf1 {[%clk 0:02:03]}  Qe6 {[%clk 0:01:31]} 13. Kb1 {[%clk 0:01:35]}  Qxe2 {[%clk 0:01:24]} 0-1


[Site "https://www.chess.com"]

[Event "Titled Tuesday Blitz July 18 Late 2023"]
[White "ArtemDyachuk"]
[Black "Rastbod, Ali"]
[BlackFideId "12567477"]
[WhiteElo "2552"]
[BlackElo "2694"]
[Result "1-0"]
[Round "10"]
[TimeControl "180+2"]
[Date "2023.07.18"]
[WhiteClock "0:00:17"]
[BlackClock "0:00:02"]
[Board "27"]

1. e4 {[%clk 0:03:00]}  e6 {[%clk 0:02:53]} 2. d4 {[%clk 0:03:00]}  d5 {[%clk 0:02:54]} 3. e5 {[%clk 0:03:00]}  c5 {[%clk 0:02:53]} 4. c3 {[%clk 0:03:00]}  Qb6 {[%clk 0:02:54]} 5. Nf3 {[%clk 0:02:59]}  Bd7 {[%clk 0:02:54]} 6. Be2 {[%clk 0:02:51]}  cxd4 {[%clk 0:02:52]} 7. cxd4 {[%clk 0:02:51]}  Bb5 {[%clk 0:02:52]} 8. Nc3 {[%clk 0:02:50]}  Bxe2 {[%clk 0:02:51]} 9. Nxe2 {[%clk 0:02:51]}  Nc6 {[%clk 0:02:47]} 10. O-O {[%clk 0:02:50]}  Nge7 {[%clk 0:02:48]} 11. Be3 {[%clk 0:02:34]}  Nf5 {[%clk 0:02:47]} 12. Ng3 {[%clk 0:02:30]}  Nxg3 {[%clk 0:02:04]} 13. fxg3 {[%clk 0:01:59]}  Be7 {[%clk 0:02:04]} 14. Qe2 {[%clk 0:01:59]}  O-O {[%clk 0:02:02]} 15. g4 {[%clk 0:01:52]}  f6 {[%clk 0:01:56]} 16. Rad1 {[%clk 0:01:50]}  fxe5 {[%clk 0:01:53]} 17. dxe5 {[%clk 0:01:51]}  Bc5 {[%clk 0:01:52]} 18. Bxc5 {[%clk 0:01:43]}  Qxc5+ {[%clk 0:01:53]} 19. Kh1 {[%clk 0:01:43]}  Qb4 {[%clk 0:01:23]} 20. h3 {[%clk 0:01:30]}  Rae8 {[%clk 0:01:05]} 21. Qd3 {[%clk 0:01:06]}  Qf4 {[%clk 0:00:54]} 22. Rfe1 {[%clk 0:00:57]}  Rf7 {[%clk 0:00:38]} 23. Qb5 {[%clk 0:00:52]}  Ref8 {[%clk 0:00:32]} 24. Qc5 {[%clk 0:00:47]}  h6 {[%clk 0:00:25]} 25. Qd6 {[%clk 0:00:44]}  Re8 {[%clk 0:00:17]} 26. Rf1 {[%clk 0:00:40]}  Qg3 {[%clk 0:00:16]} 27. b4 {[%clk 0:00:34]}  a6 {[%clk 0:00:13]} 28. a4 {[%clk 0:00:34]}  Rff8 {[%clk 0:00:05]} 29. b5 {[%clk 0:00:33]}  axb5 {[%clk 0:00:06]} 30. axb5 {[%clk 0:00:34]}  Na5 {[%clk 0:00:06]} 31. Qc7 {[%clk 0:00:33]}  Nc4 {[%clk 0:00:06]} 32. Qc5 {[%clk 0:00:22]}  Ne3 {[%clk 0:00:06]} 33. Qxe3 {[%clk 0:00:21]}  Rf4 {[%clk 0:00:04]} 34. Qe1 {[%clk 0:00:19]}  Rxg4 {[%clk 0:00:02]} 35. hxg4 {[%clk 0:00:18]}  Qxg4 {[%clk 0:00:02]} 36. Rd4 {[%clk 0:00:17]}  Qg6 {[%clk 0:00:02]} 37. Kh2 {[%clk 0:00:17]} 1-0


[Site "https://www.chess.com"]

[Event "Titled Tuesday Blitz July 18 Late 2023"]
[White "Karaoglan, Doruk"]
[Black "Toniutti, Ezio"]
[WhiteFideId "6390927"]
[BlackFideId "113034"]
[WhiteElo "2628"]
[BlackElo "2499"]
[Result "1/2-1/2"]
[Round "10"]
[TimeControl "180+2"]
[Date "2023.07.18"]
[WhiteClock "0:00:11"]
[BlackClock "0:00:05"]
[Board "30"]

1. e4 {[%clk 0:03:00]}  e5 {[%clk 0:02:56]} 2. Nf3 {[%clk 0:03:00]}  Nc6 {[%clk 0:02:55]} 3. Bc4 {[%clk 0:03:01]}  Nf6 {[%clk 0:02:54]} 4. d3 {[%clk 0:03:01]}  Be7 {[%clk 0:02:54]} 5. c3 {[%clk 0:03:01]}  O-O {[%clk 0:02:53]} 6. Bb3 {[%clk 0:03:01]}  d6 {[%clk 0:02:53]} 7. h3 {[%clk 0:03:01]}  Na5 {[%clk 0:02:52]} 8. Bc2 {[%clk 0:03:01]}  c5 {[%clk 0:02:52]} 9. Nbd2 {[%clk 0:03:02]}  Nc6 {[%clk 0:02:52]} 10. Qe2 {[%clk 0:03:02]}  Re8 {[%clk 0:02:52]} 11. Nf1 {[%clk 0:03:03]}  Bf8 {[%clk 0:02:52]} 12. g4 {[%clk 0:03:03]}  d5 {[%clk 0:02:51]} 13. Ng3 {[%clk 0:03:03]}  Be6 {[%clk 0:02:46]} 14. Bg5 {[%clk 0:03:01]}  Be7 {[%clk 0:02:41]} 15. Nf5 {[%clk 0:02:57]}  Bxf5 {[%clk 0:02:20]} 16. gxf5 {[%clk 0:02:58]}  Kh8 {[%clk 0:02:17]} 17. h4 {[%clk 0:02:44]}  d4 {[%clk 0:02:13]} 18. Bb3 {[%clk 0:02:24]}  Rf8 {[%clk 0:02:10]} 19. h5 {[%clk 0:01:48]}  h6 {[%clk 0:02:08]} 20. Bd2 {[%clk 0:01:47]}  Rc8 {[%clk 0:02:02]} 21. Nh4 {[%clk 0:01:40]}  Na5 {[%clk 0:01:55]} 22. Ng6+ {[%clk 0:01:20]}  fxg6 {[%clk 0:01:33]} 23. Be6 {[%clk 0:01:20]}  gxf5 {[%clk 0:01:23]} 24. cxd4 {[%clk 0:01:19]}  Nc6 {[%clk 0:01:18]} 25. dxe5 {[%clk 0:01:08]}  Nxe5 {[%clk 0:01:17]} 26. Bxc8 {[%clk 0:01:08]}  Qxc8 {[%clk 0:01:08]} 27. Bc3 {[%clk 0:01:08]}  Bd6 {[%clk 0:00:47]} 28. O-O-O {[%clk 0:00:50]}  f4 {[%clk 0:00:42]} 29. f3 {[%clk 0:00:44]}  b5 {[%clk 0:00:41]} 30. Rdg1 {[%clk 0:00:33]}  b4 {[%clk 0:00:38]} 31. Bd2 {[%clk 0:00:33]}  Qa6 {[%clk 0:00:34]} 32. Qg2 {[%clk 0:00:27]}  Rf7 {[%clk 0:00:29]} 33. Kb1 {[%clk 0:00:27]}  Qxd3+ {[%clk 0:00:20]} 34. Ka1 {[%clk 0:00:27]}  c4 {[%clk 0:00:20]} 35. Qh3 {[%clk 0:00:26]}  c3 {[%clk 0:00:16]} 36. Qc8+ {[%clk 0:00:26]}  Rf8 {[%clk 0:00:15]} 37. Qb7 {[%clk 0:00:22]}  Rf7 {[%clk 0:00:13]} 38. Qc8+ {[%clk 0:00:19]}  Rf8 {[%clk 0:00:12]} 39. Qb7 {[%clk 0:00:19]}  Nf7 {[%clk 0:00:08]} 40. Bc1 {[%clk 0:00:14]}  Be5 {[%clk 0:00:08]} 41. Rh2 {[%clk 0:00:14]}  cxb2+ {[%clk 0:00:04]} 42. Bxb2 {[%clk 0:00:14]}  Bxb2+ {[%clk 0:00:04]} 43. Rxb2 {[%clk 0:00:15]}  Qd4 {[%clk 0:00:05]} 44. Rc1 {[%clk 0:00:14]}  a5 {[%clk 0:00:03]} 45. Rc7 {[%clk 0:00:11]}  Ne5 {[%clk 0:00:03]} 46. Rxg7 {[%clk 0:00:11]}  Nd3 {[%clk 0:00:03]} 47. Rg2 {[%clk 0:00:08]}  Nxb2 {[%clk 0:00:03]} 48. Rxb2 {[%clk 0:00:09]}  Qd1+ {[%clk 0:00:03]} 49. Rb1 {[%clk 0:00:09]}  Qd4+ {[%clk 0:00:04]} 50. Rb2 {[%clk 0:00:10]}  Qd1+ {[%clk 0:00:04]} 51. Rb1 {[%clk 0:00:11]}  Qd4+ {[%clk 0:00:05]} 52. Rb2 {[%clk 0:00:11]} 1/2-1/2


[Site "https://www.chess.com"]

[Event "Titled Tuesday Blitz July 18 Late 2023"]
[White "Glavina, Pablo"]
[Black "Arabidze, Meri"]
[WhiteFideId "100234"]
[BlackFideId "13604040"]
[WhiteElo "2487"]
[BlackElo "2623"]
[Result "1-0"]
[Round "10"]
[TimeControl "180+2"]
[Date "2023.07.18"]
[WhiteClock "0:00:16"]
[BlackClock "0:00:00"]
[Board "31"]

1. c4 {[%clk 0:02:56]}  e5 {[%clk 0:02:59]} 2. Nc3 {[%clk 0:02:57]}  Nc6 {[%clk 0:02:59]} 3. Nf3 {[%clk 0:02:57]}  Nf6 {[%clk 0:02:56]} 4. g3 {[%clk 0:02:57]}  g6 {[%clk 0:02:48]} 5. d4 {[%clk 0:02:56]}  exd4 {[%clk 0:02:48]} 6. Nxd4 {[%clk 0:02:57]}  Bg7 {[%clk 0:02:48]} 7. Nxc6 {[%clk 0:02:57]}  bxc6 {[%clk 0:02:48]} 8. Bg2 {[%clk 0:02:57]}  O-O {[%clk 0:02:47]} 9. O-O {[%clk 0:02:57]}  Rb8 {[%clk 0:02:41]} 10. Qa4 {[%clk 0:02:57]}  a6 {[%clk 0:02:33]} 11. Rd1 {[%clk 0:02:56]}  Qe7 {[%clk 0:02:31]} 12. Qa5 {[%clk 0:02:56]}  d5 {[%clk 0:02:15]} 13. Bf4 {[%clk 0:02:45]}  Rxb2 {[%clk 0:02:10]} 14. Bxc7 {[%clk 0:02:42]}  Re8 {[%clk 0:01:37]} 15. cxd5 {[%clk 0:02:30]}  cxd5 {[%clk 0:01:36]} 16. Bf4 {[%clk 0:02:24]}  Bg4 {[%clk 0:01:28]} 17. Rac1 {[%clk 0:02:17]}  h6 {[%clk 0:01:07]} 18. h3 {[%clk 0:02:09]}  Be6 {[%clk 0:01:06]} 19. e3 {[%clk 0:02:08]}  Ne4 {[%clk 0:00:59]} 20. Nxd5 {[%clk 0:01:43]}  Bxd5 {[%clk 0:00:54]} 21. Rxd5 {[%clk 0:01:40]}  Nxf2 {[%clk 0:00:44]} 22. Rc7 {[%clk 0:01:37]}  Qe6 {[%clk 0:00:38]} 23. Rdd7 {[%clk 0:01:26]}  Nxh3+ {[%clk 0:00:36]} 24. Kh1 {[%clk 0:01:17]}  Nf2+ {[%clk 0:00:32]} 25. Kg1 {[%clk 0:01:17]}  Nh3+ {[%clk 0:00:32]} 26. Kh1 {[%clk 0:01:17]}  Nxf4 {[%clk 0:00:31]} 27. Rxf7 {[%clk 0:00:54]}  Nh5 {[%clk 0:00:31]} 28. Rxg7+ {[%clk 0:00:40]}  Kh8 {[%clk 0:00:19]} 29. Rh7+ {[%clk 0:00:39]}  Kg8 {[%clk 0:00:20]} 30. Bd5 {[%clk 0:00:39]}  Nxg3+ {[%clk 0:00:19]} 31. Kg1 {[%clk 0:00:38]}  Ne2+ {[%clk 0:00:19]} 32. Kf1 {[%clk 0:00:36]}  Ng3+ {[%clk 0:00:08]} 33. Ke1 {[%clk 0:00:35]}  Rb1+ {[%clk 0:00:08]} 34. Kd2 {[%clk 0:00:18]}  Ne4+ {[%clk 0:00:08]} 35. Kc2 {[%clk 0:00:16]}  Rc1+ {[%clk 0:00:00]} 36. Kxc1 {[%clk 0:00:16]} 1-0


[Site "https://www.chess.com"]

[Event "Titled Tuesday Blitz July 18 Late 2023"]
[White "ArchibaldCerveza29"]
[Black "Zelbel, Patrick"]
[BlackFideId "24624322"]
[WhiteElo "2476"]
[BlackElo "2771"]
[Result "0-1"]
[Round "10"]
[TimeControl "180+2"]
[Date "2023.07.18"]
[WhiteClock "0:00:00"]
[BlackClock "0:00:26"]
[Board "33"]

1. e4 {[%clk 0:03:00]}  e5 {[%clk 0:02:54]} 2. Nf3 {[%clk 0:03:00]}  Nc6 {[%clk 0:02:53]} 3. Bc4 {[%clk 0:03:00]}  Nf6 {[%clk 0:02:53]} 4. d3 {[%clk 0:02:59]}  Bc5 {[%clk 0:02:52]} 5. O-O {[%clk 0:03:00]}  O-O {[%clk 0:02:50]} 6. c3 {[%clk 0:03:00]}  d6 {[%clk 0:02:38]} 7. h3 {[%clk 0:02:59]}  a5 {[%clk 0:02:37]} 8. Re1 {[%clk 0:02:54]}  h6 {[%clk 0:02:34]} 9. a4 {[%clk 0:02:50]}  Ba7 {[%clk 0:02:25]} 10. Nbd2 {[%clk 0:02:49]}  Ne7 {[%clk 0:02:20]} 11. d4 {[%clk 0:02:39]}  Ng6 {[%clk 0:02:19]} 12. Nf1 {[%clk 0:02:35]}  exd4 {[%clk 0:02:15]} 13. cxd4 {[%clk 0:02:35]}  Nxe4 {[%clk 0:02:14]} 14. Rxe4 {[%clk 0:02:17]}  d5 {[%clk 0:02:14]} 15. Bxd5 {[%clk 0:02:16]}  Qxd5 {[%clk 0:02:13]} 16. Ng3 {[%clk 0:02:17]}  c5 {[%clk 0:02:04]} 17. Be3 {[%clk 0:02:09]}  Bf5 {[%clk 0:01:55]} 18. Nxf5 {[%clk 0:01:02]}  Qxe4 {[%clk 0:01:55]} 19. Ng3 {[%clk 0:01:02]}  Qd5 {[%clk 0:01:48]} 20. dxc5 {[%clk 0:00:56]}  Rad8 {[%clk 0:01:46]} 21. Qe1 {[%clk 0:00:47]}  Bxc5 {[%clk 0:01:44]} 22. Qxa5 {[%clk 0:00:45]}  Bxe3 {[%clk 0:01:43]} 23. Qxd5 {[%clk 0:00:45]}  Bxf2+ {[%clk 0:01:43]} 24. Kxf2 {[%clk 0:00:46]}  Rxd5 {[%clk 0:01:43]} 25. Rc1 {[%clk 0:00:40]}  Ra8 {[%clk 0:01:36]} 26. Rc4 {[%clk 0:00:27]}  b5 {[%clk 0:01:19]} 27. axb5 {[%clk 0:00:27]}  Rxb5 {[%clk 0:01:19]} 28. b4 {[%clk 0:00:17]}  Rab8 {[%clk 0:01:19]} 29. Rc7 {[%clk 0:00:11]}  R5b7 {[%clk 0:01:15]} 30. Rc5 {[%clk 0:00:07]}  Rxb4 {[%clk 0:01:15]} 31. Nf5 {[%clk 0:00:08]}  R4b5 {[%clk 0:01:13]} 32. Rxb5 {[%clk 0:00:05]}  Rxb5 {[%clk 0:01:14]} 33. N3d4 {[%clk 0:00:06]}  Rd5 {[%clk 0:01:11]} 34. Kf3 {[%clk 0:00:05]}  Kf8 {[%clk 0:01:03]} 35. g3 {[%clk 0:00:06]}  Ra5 {[%clk 0:00:39]} 36. h4 {[%clk 0:00:04]}  Ne5+ {[%clk 0:00:35]} 37. Ke4 {[%clk 0:00:03]}  Nd7 {[%clk 0:00:35]} 38. Kf4 {[%clk 0:00:03]}  Ra4 {[%clk 0:00:33]} 39. Ke4 {[%clk 0:00:01]}  Nc5+ {[%clk 0:00:31]} 40. Kf4 {[%clk 0:00:00]}  g6 {[%clk 0:00:26]} 0-1


[Site "https://www.chess.com"]

[Event "Titled Tuesday Blitz July 18 Late 2023"]
[White "Hajiyev, Kanan"]
[Black "Mikhailovsky, Vladimir"]
[WhiteFideId "13404148"]
[BlackFideId "34105414"]
[WhiteElo "2575"]
[BlackElo "2724"]
[Result "1-0"]
[Round "10"]
[TimeControl "180+2"]
[Date "2023.07.18"]
[WhiteClock "0:00:10"]
[BlackClock "0:00:00"]
[Board "34"]

1. d4 {[%clk 0:02:58]}  d5 {[%clk 0:02:58]} 2. Nf3 {[%clk 0:02:59]}  Nf6 {[%clk 0:02:58]} 3. c4 {[%clk 0:02:59]}  e6 {[%clk 0:02:57]} 4. cxd5 {[%clk 0:03:00]}  exd5 {[%clk 0:02:57]} 5. Nc3 {[%clk 0:03:01]}  c6 {[%clk 0:02:54]} 6. Qc2 {[%clk 0:02:57]}  h6 {[%clk 0:02:51]} 7. Bf4 {[%clk 0:02:57]}  Bd6 {[%clk 0:02:52]} 8. Bxd6 {[%clk 0:02:58]}  Qxd6 {[%clk 0:02:52]} 9. e3 {[%clk 0:02:58]}  O-O {[%clk 0:02:53]} 10. Bd3 {[%clk 0:02:59]}  Re8 {[%clk 0:02:25]} 11. O-O {[%clk 0:02:59]}  Be6 {[%clk 0:02:01]} 12. Ne5 {[%clk 0:02:57]}  Ng4 {[%clk 0:01:57]} 13. Nf3 {[%clk 0:02:49]}  Nd7 {[%clk 0:01:55]} 14. h3 {[%clk 0:02:49]}  Ngf6 {[%clk 0:01:55]} 15. Rab1 {[%clk 0:02:49]}  a5 {[%clk 0:01:55]} 16. Na4 {[%clk 0:02:46]}  b5 {[%clk 0:01:51]} 17. Nc5 {[%clk 0:02:45]}  Nxc5 {[%clk 0:01:51]} 18. dxc5 {[%clk 0:02:46]}  Qc7 {[%clk 0:01:46]} 19. a4 {[%clk 0:02:42]}  b4 {[%clk 0:01:44]} 20. Nd4 {[%clk 0:02:40]}  Bd7 {[%clk 0:01:44]} 21. Rfe1 {[%clk 0:02:09]}  Re7 {[%clk 0:01:25]} 22. Rbc1 {[%clk 0:02:05]}  Rae8 {[%clk 0:01:22]} 23. Qd1 {[%clk 0:02:00]}  Ne4 {[%clk 0:01:16]} 24. Qf3 {[%clk 0:01:46]}  Re5 {[%clk 0:01:07]} 25. Bxe4 {[%clk 0:01:43]}  Rxe4 {[%clk 0:01:01]} 26. Red1 {[%clk 0:01:31]}  Qe5 {[%clk 0:00:57]} 27. Rd2 {[%clk 0:01:26]}  Qg5 {[%clk 0:00:55]} 28. Kh2 {[%clk 0:01:07]}  Qg6 {[%clk 0:00:47]} 29. Qg3 {[%clk 0:01:06]}  Qf6 {[%clk 0:00:46]} 30. Qf3 {[%clk 0:01:04]}  Qe7 {[%clk 0:00:39]} 31. Nb3 {[%clk 0:01:00]}  Qg5 {[%clk 0:00:37]} 32. Qg3 {[%clk 0:00:45]}  Qf6 {[%clk 0:00:34]} 33. Nxa5 {[%clk 0:00:35]}  R8e5 {[%clk 0:00:28]} 34. Nb7 {[%clk 0:00:22]}  b3 {[%clk 0:00:16]} 35. Nd6 {[%clk 0:00:20]}  Rxa4 {[%clk 0:00:16]} 36. f4 {[%clk 0:00:17]}  Re7 {[%clk 0:00:15]} 37. Rc3 {[%clk 0:00:16]}  Rb4 {[%clk 0:00:12]} 38. Rdd3 {[%clk 0:00:13]}  d4 {[%clk 0:00:08]} 39. exd4 {[%clk 0:00:06]}  Rxd4 {[%clk 0:00:09]} 40. Rxd4 {[%clk 0:00:05]}  Qxd4 {[%clk 0:00:10]} 41. f5 {[%clk 0:00:04]}  Qe5 {[%clk 0:00:07]} 42. Qxe5 {[%clk 0:00:02]}  Rxe5 {[%clk 0:00:08]} 43. f6 {[%clk 0:00:03]}  gxf6 {[%clk 0:00:07]} 44. Rxb3 {[%clk 0:00:04]}  Rxc5 {[%clk 0:00:07]} 45. Rb7 {[%clk 0:00:05]}  Be6 {[%clk 0:00:07]} 46. Ne8 {[%clk 0:00:04]}  f5 {[%clk 0:00:07]} 47. Nc7 {[%clk 0:00:04]}  Rc2 {[%clk 0:00:04]} 48. b4 {[%clk 0:00:05]}  Bc4 {[%clk 0:00:03]} 49. Kg3 {[%clk 0:00:04]}  Bd3 {[%clk 0:00:04]} 50. Kf4 {[%clk 0:00:04]}  Be4 {[%clk 0:00:04]} 51. g4 {[%clk 0:00:04]}  Rc4 {[%clk 0:00:05]} 52. Ke5 {[%clk 0:00:04]}  fxg4 {[%clk 0:00:05]} 53. hxg4 {[%clk 0:00:04]}  Bg6 {[%clk 0:00:04]} 54. Ne8 {[%clk 0:00:04]}  Kf8 {[%clk 0:00:04]} 55. Nf6 {[%clk 0:00:04]}  Rc1 {[%clk 0:00:03]} 56. Nd7+ {[%clk 0:00:04]}  Kg7 {[%clk 0:00:03]} 57. Nc5 {[%clk 0:00:05]}  Re1+ {[%clk 0:00:03]} 58. Kf4 {[%clk 0:00:06]}  Rf1+ {[%clk 0:00:04]} 59. Kg3 {[%clk 0:00:06]}  Rc1 {[%clk 0:00:05]} 60. Kf4 {[%clk 0:00:07]}  Rc4+ {[%clk 0:00:05]} 61. Kg3 {[%clk 0:00:07]}  h5 {[%clk 0:00:06]} 62. gxh5 {[%clk 0:00:08]}  Bxh5 {[%clk 0:00:06]} 63. Rb6 {[%clk 0:00:08]}  Bg6 {[%clk 0:00:04]} 64. Rxc6 {[%clk 0:00:06]}  Rxb4 {[%clk 0:00:04]} 65. Rc7 {[%clk 0:00:06]}  Rd4 {[%clk 0:00:04]} 66. Ne6+ {[%clk 0:00:06]}  Kf6 {[%clk 0:00:04]} 67. Nxd4 {[%clk 0:00:07]}  Ke5 {[%clk 0:00:05]} 68. Nf3+ {[%clk 0:00:08]}  Kd6 {[%clk 0:00:05]} 69. Ra7 {[%clk 0:00:08]}  f6 {[%clk 0:00:05]} 70. Nd4 {[%clk 0:00:09]}  Ke5 {[%clk 0:00:05]} 71. Nf3+ {[%clk 0:00:08]}  Ke6 {[%clk 0:00:05]} 72. Ra5 {[%clk 0:00:09]}  Be4 {[%clk 0:00:04]} 73. Kf4 {[%clk 0:00:09]}  Bc6 {[%clk 0:00:04]} 74. Nd4+ {[%clk 0:00:10]}  Kd7 {[%clk 0:00:04]} 75. Nxc6 {[%clk 0:00:10]}  Kxc6 {[%clk 0:00:00]} 76. Kf5 {[%clk 0:00:10]} 1-0


[Site "https://www.chess.com"]